fUST/lending_fUST_20250305
["ID","MTS","AMOUNT","RATE_DAILY","PERIOD"]
[355401648,1741106340894,-6494.74,0.00048219,120]
[355401649,1741106340924,-6494.74,0.00048767,120]
[355401650,1741106340954,-567.71,0.000489,30]
[355401651,1741106340983,-1049.0,0.000489,30]
[355401652,1741106341012,-248.52,0.000489,30]
[355401653,1741106341044,-221152.83768666,0.00049,30]
[355401654,1741106341072,-17873.0,0.00049,120]
[355401655,1741106341100,-1957.39725793,0.00049,30]
[355401656,1741106341130,-16508.55856604,0.00049,30]
[355401657,1741106341160,-324.73820307,0.00049,120]
[355401658,1741106341189,-150.7,0.00049,120]
[355401659,1741106341226,-1136.64054549,0.00049096,90]
[355401660,1741106341263,-1136.64054549,0.00049196,96]
[355401661,1741106341306,-1136.64054549,0.00049296,93]
[355401662,1741106341343,-1000.0,0.00049315,120]
[355401663,1741106341382,-1000.0,0.00049315,120]
[355401664,1741106341421,-1000.0,0.00049315,120]
[355401665,1741106341455,-1000.0,0.00049315,120]
[355401666,1741106341487,-500.0,0.00049315,120]
[355401667,1741106341519,-6494.74,0.00049315,120]
[355401668,1741106341556,-286.01349304,0.00049315,120]
[355401669,1741106341589,-500.0,0.00049315,120]
[355401670,1741106341621,-500.0,0.00049315,120]
[355401671,1741106341741,-500.0,0.00049315,120]
[355401672,1741106341798,-500.0,0.00049315,120]
[355401673,1741106341830,-500.0,0.00049315,120]
[355401674,1741106341862,-500.0,0.00049315,120]
[355401675,1741106341893,-500.0,0.00049315,120]
[355401676,1741106341923,-500.0,0.00049315,120]
[355401677,1741106341953,-500.0,0.00049315,120]
[355401678,1741106341983,-500.0,0.00049315,120]
[355401679,1741106342016,-500.0,0.00049315,120]
[355401680,1741106342053,-500.0,0.00049315,120]
[355401681,1741106342085,-500.0,0.00049315,120]
[355401682,1741106342117,-500.0,0.00049315,120]
[355401683,1741106342148,-500.0,0.00049315,120]
[355401684,1741106342181,-500.0,0.00049315,120]
[355401685,1741106342213,-500.0,0.00049315,120]
[355401686,1741106342246,-500.0,0.00049315,120]
[355401687,1741106342281,-500.0,0.00049315,120]
[355401688,1741106342313,-500.0,0.00049315,120]
[355401689,1741106342346,-500.0,0.00049315,120]
[355401690,1741106342375,-500.0,0.00049315,120]
[355401691,1741106342406,-500.0,0.00049315,120]
[355401692,1741106342435,-500.0,0.00049315,120]
[355401693,1741106342463,-500.0,0.00049315,120]
[355401694,1741106342492,-500.0,0.00049315,120]
[355401695,1741106342520,-500.0,0.00049315,120]
[355401696,1741106342553,-500.0,0.00049315,120]
[355401697,1741106342582,-500.0,0.00049315,120]
[355401698,1741106342609,-500.0,0.00049315,120]
[355401699,1741106342637,-500.0,0.00049315,120]
[355401700,1741106342667,-500.0,0.00049315,120]
[355401701,1741106342696,-500.0,0.00049315,120]
[355401702,1741106342725,-500.0,0.00049315,120]
[355401703,1741106342752,-500.0,0.00049315,120]
[355401704,1741106342786,-500.0,0.00049315,120]
[355401705,1741106342817,-500.0,0.00049315,120]
[355401706,1741106342845,-500.0,0.00049315,120]
[355401707,1741106342872,-500.0,0.00049315,120]
[355401708,1741106342908,-500.0,0.00049315,120]
[355401709,1741106342936,-500.0,0.00049315,120]
[355401710,1741106342965,-500.0,0.00049315,120]
[355401711,1741106342992,-500.0,0.00049315,120]
[355401712,1741106343028,-500.0,0.00049315,120]
[355401713,1741106343058,-500.0,0.00049315,120]
[355401714,1741106343088,-500.0,0.00049315,120]
[355401715,1741106343121,-500.0,0.00049315,120]
[355401716,1741106343151,-500.0,0.00049315,120]
[355401717,1741106343182,-500.0,0.00049315,120]
[355401718,1741106343213,-500.0,0.00049315,120]
[355401719,1741106343244,-500.0,0.00049315,120]
[355401720,1741106343277,-500.0,0.00049315,120]
[355401721,1741106343309,-500.0,0.00049315,120]
[355401722,1741106343341,-253.85550195,0.00049315,120]
[355401723,1741106343375,-558.1628208,0.00049315,30]
[355401724,1741106343408,-1116.3256416,0.00049315,30]
[355401725,1741106343440,-1136.64054549,0.00049396,94]
[355401726,1741106343471,-1136.64054549,0.00049496,100]
[355401727,1741106343502,-1000.0,0.000495,120]
[355401728,1741106343534,-1136.64054549,0.00049596,91]
[355401729,1741106343567,-1136.64054549,0.00049696,90]
[355401730,1741106343599,-1136.64054549,0.00049796,97]
[355401731,1741106343632,-150.0,0.00049861,30]
[355401732,1741106343665,-6494.74,0.00049863,120]
[355401733,1741106343699,-153.0,0.00049863,30]
[355401734,1741106343733,-500.0,0.00049881,30]
[355401735,1741106343767,-1136.64054549,0.00049896,93]
[355401736,1741106343809,-1000.0,0.00049949,120]
[355401737,1741106343843,-1136.64054549,0.00049996,99]
[355401738,1741106343877,-20000.0,0.0005,50]
[355401739,1741106343909,-700.01683597,0.0005,90]
[355401740,1741106343940,-834.63546758,0.0005,30]
[355401741,1741106343972,-400.0,0.0005,120]
[355401742,1741106344003,-501.0,0.0005,120]
[355401743,1741106344034,-534.56286424,0.0005,120]
[355401744,1741106344064,-1000.0,0.0005,120]
[355401745,1741106344094,-24797.5982521,0.0005,120]
[355401746,1741106344124,-8635.02322371,0.0005,60]
[355401747,1741106344153,-131676.79326923,0.0005,30]
[355401748,1741106344183,-1136.64054549,0.00050096,97]
[355401749,1741106344214,-1136.64054549,0.00050196,91]
[355401750,1741106344246,-159.0,0.00050262,120]
[355401751,1741106344284,-1136.64054549,0.00050296,97]
[355401752,1741106344318,-1136.64054549,0.00050396,92]
[355401753,1741106344352,-6494.74,0.0005041,120]
[355401754,1741106344385,-500.0,0.0005042,120]
[355401755,1741106344420,-500.0,0.0005042,120]
[355401756,1741106344454,-500.0,0.0005042,120]
[355401757,1741106344488,-500.0,0.0005042,120]
[355401758,1741106344526,-500.0,0.0005042,120]
[355401759,1741106344561,-500.0,0.0005042,120]
[355401760,1741106344594,-1136.64054549,0.00050496,97]
[355401761,1741106344628,-397.0,0.00050537,120]
[355401762,1741106344661,-1136.64054549,0.00050596,99]
[355401763,1741106344694,-1136.64054549,0.00050696,96]
[355401764,1741106344727,-1136.64054549,0.00050796,91]
[355401765,1741106344759,-1136.64054549,0.00050896,94]
[355401766,1741106344797,-6494.96908825,0.00050958,120]
[355401767,1741106344829,-1136.64054549,0.00050996,90]
[355401768,1741106344861,-17873.0,0.00051,120]
[355401769,1741106344894,-3000.0,0.00051,85]
[355401770,1741106344928,-326.9,0.00051,30]
[355401771,1741106344962,-500000.0,0.00051,120]
[355401772,1741106344998,-3000.0,0.0005101,85]
[355401773,1741106345034,-3000.0,0.0005102,85]
[355401774,1741106345068,-3000.0,0.0005103,85]
[355401775,1741106345104,-3000.0,0.0005104,85]
[355401776,1741106345249,-3000.0,0.0005105,85]
[355401777,1741106345287,-3000.0,0.0005106,85]
[355401778,1741106345322,-3962.124533,0.0005107,85]
[355401779,1741106345358,-1136.64054549,0.00051096,95]
[355401780,1741106345390,-1136.64054549,0.00051196,92]
[355401781,1741106345423,-150.0,0.00051231,30]
[355401782,1741106345459,-1136.64054549,0.00051296,92]
[355401783,1741106345492,-1136.64054549,0.00051396,99]
[355401784,1741106345528,-1136.64054549,0.00051496,96]
[355401785,1741106345561,-1136.64054549,0.00051596,96]
[355401786,1741106345595,-1136.64054549,0.00051696,100]
[355401787,1741106345630,-15000.0,0.0005179,30]
[355401788,1741106345663,-1136.64054549,0.00051796,99]
[355401789,1741106345695,-1136.64054549,0.00051896,100]
[355401790,1741106345725,-30091.07,0.000519,30]
[355401791,1741106345756,-1136.64054549,0.00051996,95]
[355401792,1741106345787,-638.62082333,0.00052,120]
[355401793,1741106345819,-400.0,0.00052,120]
[355401794,1741106345849,-1136.64054549,0.00052096,100]
[355401795,1741106345879,-1136.64054549,0.00052196,100]
[355401796,1741106345907,-1136.64054549,0.00052296,96]
[355401797,1741106345935,-1136.64054549,0.00052396,91]
[355401798,1741106345962,-356.0733927,0.00052423,30]
[355401799,1741106345993,-12642.93117125,0.00052484,120]
[355401800,1741106346022,-1136.64054549,0.00052496,95]
[355401801,1741106346053,-1136.64054549,0.00052596,94]
[355401802,1741106346081,-2587.10222222,0.000526,30]
[355401803,1741106346110,-150.0,0.00052601,30]
[355401804,1741106346139,-500.0,0.00052602,30]
[355401805,1741106346168,-558.2342964,0.00052603,30]
[355401806,1741106346197,-558.2342964,0.00052603,30]
[355401807,1741106346225,-1128.2264569,0.00052603,30]
[355401808,1741106346255,-558.2342964,0.00052603,30]
[355401809,1741106346293,-1136.64054549,0.00052696,90]
[355401810,1741106346322,-1136.64,0.00052796,92]
[355401811,1741106346351,-2566.78,0.000528,90]
[355401812,1741106346381,-356.0733927,0.00052806,30]
[355401813,1741106346410,-356.0733927,0.00052806,30]
[355401814,1741106346439,-356.0733927,0.00052806,30]
[355401815,1741106346469,-356.0733927,0.00052806,30]
[355401816,1741106346499,-356.0733927,0.00052806,30]
[355401817,1741106346541,-712.1467854,0.00052806,30]
[355401818,1741106346573,-356.0733927,0.00052806,30]
[355401819,1741106346606,-356.0733927,0.00052806,30]
[355401820,1741106346640,-356.0733927,0.00052806,30]
[355401821,1741106346671,-356.0733927,0.00052806,30]
[355401822,1741106346703,-712.1467854,0.00052806,30]
[355401823,1741106346738,-356.0733927,0.00052806,30]
[355401824,1741106346771,-356.0733927,0.00052806,30]
[355401825,1741106346813,-356.0733927,0.00052806,30]
[355401826,1741106346847,-356.0733927,0.00052806,30]
[355401827,1741106346878,-356.0733927,0.00052806,30]
[355401828,1741106346908,-356.0733927,0.00052806,30]
[355401829,1741106346938,-356.0733927,0.00052806,30]
[355401830,1741106346965,-356.0733927,0.00052806,30]
[355401831,1741106346994,-4000.0,0.00053,120]
[355401832,1741106347023,-17873.0,0.00053,120]
[355401833,1741106347055,-248.52,0.00053,30]
[355401834,1741106347084,-500.0,0.0005315,35]
[355401835,1741106347113,-159.0,0.00053403,120]
[355401836,1741106347141,-682.2922267,0.00053425,30]
[355401837,1741106347169,-1116.4685928,0.00053425,30]
[355401838,1741106347199,-1181.33977,0.000535,120]
[355401839,1741106347228,-656.29987,0.000535,120]
[355401840,1741106347259,-312.59974,0.000535,120]
[355401841,1741106347297,-1100.16927579,0.000535,120]
[355401842,1741106347328,-397.0,0.00053537,120]
[355401843,1741106347360,-600.51675,0.00053605,120]
[355401844,1741106347396,-500.0,0.00053698,40]
[355401845,1741106347430,-356.0733927,0.00053765,30]
[355401846,1741106347461,-356.0733927,0.00053765,30]
[355401847,1741106347492,-159.0,0.00053852,120]
[355401848,1741106347522,-150.0,0.00053971,30]
[355401849,1741106347560,-259.0,0.00054,120]
[355401850,1741106347592,-4120.3,0.00054,120]
[355401851,1741106347621,-500.0,0.00054246,45]
[355401852,1741106347651,-5000.0,0.000545,120]
[355401853,1741106347680,-356.0305741,0.00054712,30]
[355401854,1741106347709,-356.0305741,0.00054712,30]
[355401855,1741106347737,-297.133255,0.00054783,120]
[355401856,1741106347765,-153.385741,0.00054783,120]
[355401857,1741106347798,-151.0,0.00054784,110]
[355401858,1741106347827,-151.0,0.00054784,120]
[355401859,1741106347857,-156.629981,0.00054784,120]
[355401860,1741106347887,-2075.15,0.00054794,120]
[355401861,1741106347915,-152.91715402,0.00054794,120]
[355401862,1741106347944,-666.0,0.00054794,120]
[355401863,1741106347975,-523.2,0.00054794,120]
[355401864,1741106348003,-4420.18,0.00054794,120]
[355401865,1741106348035,-4420.18,0.00054794,120]
[355401866,1741106348065,-4420.18,0.00054794,120]
[355401867,1741106348095,-4420.18,0.00054794,120]
[355401868,1741106348126,-4420.18,0.00054794,120]
[355401869,1741106348157,-4420.18,0.00054794,120]
[355401870,1741106348189,-4420.18,0.00054794,120]
[355401871,1741106348219,-4420.18,0.00054794,120]
[355401872,1741106348248,-4420.18,0.00054794,120]
[355401873,1741106348280,-4420.18,0.00054794,120]
[355401874,1741106348310,-4420.18,0.00054794,120]
[355401875,1741106348339,-4420.18,0.00054794,120]
[355401876,1741106348369,-4420.18,0.00054794,120]
[355401877,1741106348399,-4420.18,0.00054794,120]
[355401878,1741106348428,-4420.18,0.00054794,120]
[355401879,1741106348457,-4420.18,0.00054794,120]
[355401880,1741106348597,-4420.18,0.00054794,120]
[355401881,1741106348628,-4420.18,0.00054794,120]
[355401882,1741106348657,-4420.18,0.00054794,120]
[355401883,1741106348687,-500.0,0.00054794,50]
[355401884,1741106348720,-4420.18,0.00054794,120]
[355401885,1741106348771,-4420.18,0.00054794,120]
[355401886,1741106348826,-4420.18,0.00054794,120]
[355401887,1741106348869,-4420.18,0.00054794,120]
[355401888,1741106348900,-4420.2759104,0.00054794,120]
[355401889,1741106349092,500.0,0.00041369,120]
[355401890,1741106349128,384225.39368145,0.00054785,30]
[355401892,1741106535156,300.0,0.00046863,60]
[355401893,1741106535650,300.0,0.00046863,60]
[355401894,1741106536121,400.0,0.00046863,60]
[355401895,1741106565729,860.5,0.00046863,30]
[355401896,1741106632638,150.0,0.0004689,120]
[355401897,1741106655487,1500.0,0.0004689,120]
[355401898,1741106698918,2000.0,0.0004689,30]
[355401899,1741106703196,2506.87652023,0.0004689,120]
[355401901,1741106823976,500.0,0.0004689,30]
[355401902,1741106834558,500.0,0.0004689,30]
[355401903,1741106839482,300.0,0.0004689,60]
[355401904,1741106840613,300.0,0.0004689,60]
[355401905,1741106841401,400.0,0.0004689,60]
[355401906,1741106845164,500.0,0.0004689,30]
[355401907,1741106845331,249.75,0.0004689,30]
[355401908,1741106845747,335.25,0.0004689,30]
[355401910,1741106855764,500.0,0.0004689,30]
[355401911,1741106866779,500.0,0.0004689,30]
[355401912,1741106877357,500.0,0.0004689,30]
[355401913,1741106888369,500.0,0.0004689,30]
[355401914,1741106898988,500.0,0.00046897,30]
[355401915,1741106909563,500.0,0.00046897,30]
[355401916,1741106920151,500.0,0.00046897,30]
[355401917,1741106931193,500.0,0.00046897,30]
[355401918,1741106931524,150.0,0.00046897,120]
[355401919,1741106941783,500.0,0.00046897,30]
[355401920,1741106952435,500.0,0.00046897,30]
[355401921,1741106962911,500.0,0.00046897,30]
[355401922,1741106973501,500.0,0.00046897,30]
[355401923,1741106984078,370.49002358,0.00046897,30]
[355401924,1741106994657,500.0,0.00046897,30]
[355401972,1741107032122,-238.91548,0.00027,120]
[355401973,1741107032132,-90.54452,0.00029051,2]
[355401974,1741107032228,-1124.5908139,0.00029051,2]
[355401975,1741107032238,-203.205522,0.00029177,2]
[355401976,1741107032248,-1083.1085275,0.00029321,2]
[355401977,1741107032258,-160.0,0.0003046,2]
[355401978,1741107032268,-500.0,0.00031273,5]
[355401979,1741107032278,-157.85,0.00031286,2]
[355401980,1741107032288,-157.85,0.00031289,2]
[355401981,1741107032299,-157.85,0.00031289,2]
[355401982,1741107032308,-157.85,0.00031289,2]
[355401984,1741107032318,-297.69513654,0.00031295,2]
[355401987,1741107032339,-102.30486346,0.00031295,2]
[355401989,1741107032349,-726.58494146,0.00031296,2]
[355401991,1741107032361,-3171.11019508,0.00031296,2]
[355401993,1741107032372,-2269.84001427,0.00031296,2]
[355402041,1741107037886,-0.01367287,0.00031289,2]
[355402042,1741107037903,-157.83632713,0.00031289,2]
[355402043,1741107037913,-169.14097559,0.00031296,2]
[355402044,1741107037930,-16276.2035796,0.00031296,2]
[355402045,1741107037940,-6342.0384004,0.00031299,2]
[355402047,1741107037949,-157.85,0.00031352,2]
[355402049,1741107037960,-1536.08281657,0.00031362,2]
[355402051,1741107037970,-157.85,0.00031452,2]
[355402052,1741107037980,-390.077983,0.00031462,2]
[355402054,1741107037991,-157.85,0.00031515,2]
[355402056,1741107038000,-157.85,0.00031515,2]
[355402058,1741107038010,-157.85,0.00031515,2]
[355402060,1741107038020,-157.85,0.00031515,2]
[355402062,1741107038029,-157.85,0.00031515,2]
[355402064,1741107038038,-157.85,0.00031515,2]
[355402066,1741107038047,-10000.0,0.00031525,2]
[355402067,1741107038057,-153.11270697,0.00031525,120]
[355402068,1741107038066,-250.0,0.00031529,2]
[355402069,1741107038075,-157.85,0.0003189,2]
[355402070,1741107038089,-510.66441765,0.000319,6]
[355402071,1741107038099,-238.91548,0.000323,120]
[355402072,1741107038109,-423.5877006,0.00032374,2]
[355402073,1741107038119,-153.82,0.000327,31]
[355402074,1741107038129,-153.82,0.000327,31]
[355402075,1741107038139,-157.85,0.00033674,2]
[355402076,1741107038148,-560.0,0.00033684,2]
[355402077,1741107038158,-157.85,0.00033963,2]
[355402078,1741107038167,-157.85,0.00033963,2]
[355402079,1741107038177,-500.0,0.00033973,5]
[355402080,1741107038187,-500.0,0.00033973,5]
[355402081,1741107038197,-573.03127866,0.00033973,5]
[355402082,1741107038207,-500.0,0.00033973,5]
[355402083,1741107038218,-500.0,0.00033973,5]
[355402084,1741107038227,-500.0,0.00033973,5]
[355402085,1741107038236,-500.0,0.00033973,5]
[355402086,1741107038245,-500.0,0.00033973,5]
[355402087,1741107038255,-500.0,0.00033973,5]
[355402088,1741107038265,-500.0,0.00033973,5]
[355402089,1741107038274,-175.00708754,0.00033973,5]
[355402090,1741107038284,-500.0,0.00033973,5]
[355402091,1741107038294,-500.0,0.00033973,5]
[355402092,1741107038303,-500.0,0.00033973,5]
[355402093,1741107038313,-500.0,0.00033973,5]
[355402094,1741107038323,-500.0,0.00033973,5]
[355402095,1741107038336,-500.0,0.00033973,5]
[355402096,1741107038345,-500.0,0.00033973,5]
[355402097,1741107038355,-1025.03,0.00033979,3]
[355402098,1741107038364,-512.52,0.00033979,3]
[355402099,1741107038374,-256.26,0.00033979,3]
[355402100,1741107038384,-768.78,0.00033979,3]
[355402101,1741107038396,-9949.74491596,0.0003398,2]
[355402102,1741107038407,-500.0,0.00033988,7]
[355402103,1741107038416,-500.0,0.00033988,7]
[355402104,1741107038426,-500.0,0.00033988,7]
[355402105,1741107038436,-500.0,0.00033988,7]
[355402106,1741107038445,-500.0,0.00033988,7]
[355402107,1741107038455,-500.0,0.00033988,2]
[355402108,1741107038464,-500.0,0.00033988,7]
[355402109,1741107038474,-500.0,0.00033988,7]
[355402110,1741107038483,-537.34885476,0.00033988,7]
[355402111,1741107038495,-500.0,0.00033988,7]
[355402112,1741107038505,-500.0,0.00033988,7]
[355402113,1741107038516,-500.0,0.00033988,2]
[355402114,1741107038530,-500.0,0.00033988,7]
[355402115,1741107038540,-500.0,0.00033988,7]
[355402116,1741107038551,-500.0,0.00033988,7]
[355402117,1741107038561,-500.0,0.00033988,2]
[355402118,1741107038571,-500.0,0.00033988,7]
[355402119,1741107038583,-500.0,0.00033988,7]
[355402120,1741107038593,-500.0,0.00033988,7]
[355402121,1741107038605,-500.0,0.00033988,2]
[355402122,1741107038615,-500.0,0.00033988,7]
[355402123,1741107038624,-500.0,0.00033988,7]
[355402124,1741107038634,-500.0,0.00033988,7]
[355402125,1741107038644,-500.0,0.00033988,2]
[355402126,1741107038654,-500.0,0.00033988,7]
[355402127,1741107038664,-500.0,0.00033988,2]
[355402128,1741107038673,-500.0,0.00033988,7]
[355402129,1741107038684,-500.0,0.00033988,7]
[355402130,1741107038693,-500.0,0.00033988,7]
[355402131,1741107038703,-500.0,0.00033988,7]
[355402132,1741107038713,-500.0,0.00033988,2]
[355402133,1741107038723,-500.0,0.00033988,7]
[355402134,1741107038734,-500.0,0.00033988,7]
[355402135,1741107038743,-623.61821533,0.00033988,7]
[355402136,1741107038754,-500.0,0.00033988,2]
[355402137,1741107038764,-649.94202596,0.00033988,7]
[355402138,1741107038774,-500.0,0.00033988,7]
[355402139,1741107038785,-500.0,0.00033988,2]
[355402140,1741107038795,-500.0,0.00033988,7]
[355402141,1741107038804,-500.0,0.00033988,7]
[355402142,1741107038814,-500.0,0.00033988,2]
[355402143,1741107038824,-500.0,0.00033988,7]
[355402144,1741107038838,-500.0,0.00033988,2]
[355402145,1741107038848,-500.0,0.00033988,7]
[355402146,1741107038858,-500.0,0.00033988,7]
[355402147,1741107038867,-500.0,0.00033988,2]
[355402148,1741107038877,-500.0,0.00033988,7]
[355402149,1741107038887,-500.0,0.00033988,2]
[355402150,1741107038897,-500.0,0.00033988,7]
[355402151,1741107038906,-500.0,0.00033988,7]
[355402152,1741107038915,-500.0,0.00033988,2]
[355402153,1741107038925,-500.0,0.00033988,7]
[355402154,1741107038935,-500.0,0.00033988,2]
[355402155,1741107038945,-500.0,0.00033988,7]
[355402156,1741107038955,-500.0,0.00033988,7]
[355402157,1741107038965,-500.0,0.00033988,2]
[355402158,1741107038975,-500.0,0.00033988,7]
[355402159,1741107038985,-500.0,0.00033988,2]
[355402160,1741107038996,-500.0,0.00033988,7]
[355402161,1741107039006,-500.0,0.00033988,2]
[355402162,1741107039016,-500.0,0.00033988,7]
[355402163,1741107039027,-500.0,0.00033988,2]
[355402164,1741107039037,-279.4780788,0.00033988,7]
[355402165,1741107039048,-500.0,0.00033988,7]
[355402166,1741107039058,-500.0,0.00033988,2]
[355402167,1741107039068,-500.0,0.00033988,7]
[355402168,1741107039081,-500.0,0.00033988,2]
[355402169,1741107039092,-500.0,0.00033988,7]
[355402170,1741107039103,-500.0,0.00033988,2]
[355402171,1741107039113,-500.0,0.00033988,7]
[355402172,1741107039123,-500.0,0.00033988,2]
[355402173,1741107039133,-500.0,0.00033988,7]
[355402174,1741107039143,-500.0,0.00033988,2]
[355402175,1741107039153,-500.0,0.00033988,7]
[355402176,1741107039163,-589.59064847,0.00033988,2]
[355402177,1741107039174,-500.0,0.00033988,7]
[355402178,1741107039185,-500.0,0.00033988,7]
[355402179,1741107039195,-500.0,0.00033988,2]
[355402180,1741107039206,-500.0,0.00033988,7]
[355402181,1741107039217,-500.0,0.00033988,2]
[355402182,1741107039227,-500.0,0.00033988,7]
[355402183,1741107039238,-500.0,0.00033988,2]
[355402184,1741107039247,-44.95124462,0.00033988,7]
[355402185,1741107039261,-107.96876135,0.00033988,7]
[355402186,1741107039271,-500.0,0.00033988,2]
[355402187,1741107039281,-500.0,0.00033988,2]
[355402188,1741107039291,-500.0,0.00033988,2]
[355402189,1741107039302,-500.0,0.00033988,7]
[355402190,1741107039313,-500.0,0.00033988,2]
[355402191,1741107039323,-500.0,0.00033988,2]
[355402192,1741107039338,-150.0,0.00033999,2]
[355402193,1741107039348,-169.75,0.00034,7]
[355402195,1741107039358,-150.129,0.00035,5]
[355402197,1741107039368,-150.12925,0.00035,5]
[355402198,1741107039377,-2050.06,0.00035349,3]
[355402199,1741107039387,-1025.04,0.00035349,3]
[355402200,1741107039398,-512.52,0.00035349,3]
[355402202,1741107039407,-150.0,0.00035369,2]
[355402203,1741107039418,-150.129,0.00035481,5]
[355402204,1741107039427,-500.0,0.0003589,2]
[355402205,1741107039437,-783.0,0.00036255,2]
[355402206,1741107039447,-153.82,0.000367,31]
[355402207,1741107039456,-153.82,0.000367,31]
[355402210,1741107039466,-153.82,0.000367,31]
[355402213,1741107039476,-153.82,0.000367,31]
[355402215,1741107039487,-150.0,0.00036739,2]
[355402217,1741107039496,-500.0,0.00036752,5]
[355402219,1741107039510,-238.91548,0.000376,120]
[355402221,1741107039519,-169.75,0.000376,7]
[355402224,1741107039530,-150.0,0.00038109,2]
[355402226,1741107039539,-150.12925,0.00038211,14]
[355402228,1741107039550,-150.232,0.00038537,2]
[355402230,1741107039560,-703.116,0.00038537,2]
[355402232,1741107039570,-845.775,0.00038537,2]
[355402234,1741107039584,-397.0,0.00038537,2]
[355402235,1741107039593,-250.0,0.00038537,2]
[355402247,1741107039726,-1097.0,0.00039023,5]
[355402251,1741107039742,-1000.0,0.00039452,5]
[355402254,1741107039752,-500.0,0.00039452,5]
[355402256,1741107039762,-400.88649107,0.00039452,5]
[355402259,1741107039772,-507.81447574,0.00039452,5]
[355402262,1741107039782,-500.0,0.00039452,5]
[355402265,1741107039792,-1000.0,0.00039452,5]
[355402268,1741107039803,-1000.0,0.00039452,5]
[355402271,1741107039813,-1029.16529002,0.00039452,5]
[355402274,1741107039823,-1000.0,0.00039452,5]
[355402277,1741107039835,-1000.0,0.00039452,5]
[355402280,1741107039845,-1000.0,0.00039452,5]
[355402284,1741107039856,-1029.76665981,0.00039452,5]
[355402286,1741107039866,-229.87393912,0.00039452,5]
[355402290,1741107039876,-1000.0,0.00039452,5]
[355402291,1741107039892,-1000.0,0.00039452,5]
[355402293,1741107039902,-150.0,0.00039479,2]
[355402295,1741107039912,-1417.40501047,0.00039773,2]
[355402297,1741107039922,-24874.3622899,0.00039844,3]
[355402300,1741107039931,-200.33607749,0.00039853,31]
[355402303,1741107039941,-355.78499603,0.00039853,31]
[355402306,1741107039950,-521.21537659,0.00039853,31]
[355402309,1741107039960,-319.11145505,0.00039853,31]
[355402312,1741107039970,-346.93666127,0.00039853,31]
[355402315,1741107039979,-4765.73848569,0.00039854,2]
[355402559,1741107042435,-1037.9293589,0.00036713,2]
[355402561,1741107042447,-989.4706411,0.00039854,2]
[355402563,1741107042472,-213177.10308772,0.00039854,2]
[355402564,1741107042488,-3067.68778549,0.00039854,2]
[355402565,1741107042499,-500.0,0.00039873,5]
[355402566,1741107042510,-500.0,0.00039873,5]
[355402567,1741107042520,-500.0,0.00039873,5]
[355402569,1741107042536,-163.46,0.000399,30]
[355402572,1741107042545,-161.63,0.000399,30]
[355402576,1741107042556,-4032.34,0.000399,30]
[355402579,1741107042566,-165.68,0.000399,30]
[355402582,1741107042577,-1267.88,0.000399,30]
[355402585,1741107042591,-10000.0,0.0004,2]
[355402587,1741107042600,-156.50505,0.00040257,2]
[355402590,1741107042610,-153.82,0.000407,31]
[355402594,1741107042620,-153.82,0.000407,31]
[355402597,1741107042629,-153.82,0.000407,31]
[355402599,1741107042639,-153.82,0.000407,31]